bitfinex-derivatives/quotes_ETHF0:USTF0_20240920
["timestamp","ask_amount","ask_price","bid_price","bid_amount"]
[1726807912775,0.3906,2542.1,2541.6,3.46338]
[1726807912975,0.3906,2542.1,2541.7,0.39337]
[1726807913976,0.3906,2542.1,2541.6,3.46338]
[1726807914577,0.78391,2542.1,2541.6,0.39338]
[1726807914780,3.2078,2541.9,2541.5,3.07]
[1726807914975,3.46338,2541.7,2541.0,4.06294255]
[1726807915190,0.39343,2541.4,2541.0,0.3983]
[1726807915385,6.2778,2541.5,2540.9,0.39349]
[1726807915386,3.4625,2541.3,2540.9,0.39349]
[1726807915576,3.8587,2541.3,2540.9,0.39349]
[1726807915775,0.7887,2541.3,2540.9,0.39349]
[1726807916174,0.3925,2541.3,2541.0,0.39347]
[1726807916376,0.3925,2541.3,2541.0,0.39348]
[1726807917475,0.3925,2541.3,2541.1,0.39347]
[1726807917778,0.3925,2541.3,2540.8,0.3935]
[1726807917980,3.6003,2541.3,2540.8,0.39351]
[1726807918177,0.3925,2541.3,2540.8,0.39351]
[1726807918376,3.6003,2541.3,2540.8,0.39351]
[1726807918976,3.6003,2541.3,2540.7,0.377]
[1726807918977,3.99375,2541.3,2540.7,0.77052]
[1726807919171,6.2778,2541.0,2540.5,0.39355]
[1726807919370,3.07,2540.8,2540.1,4.20074255]
[1726807919577,3.07,2540.6,2540.1,3.2078]
[1726807919775,3.6154,2540.7,2540.3,0.39358]
[1726807920384,0.4076,2540.7,2540.4,0.39357]
[1726807921184,6.6854,2540.7,2540.0,0.377]
[1726807921375,3.07,2540.5,2540.0,0.77063]
[1726807921678,0.39355,2540.6,2540.0,0.77063]
[1726807922993,3.6154,2540.7,2540.2,3.07]
[1726807923179,3.6154,2540.7,2540.3,0.39359]
[1726807923371,3.6154,2540.7,2540.3,0.39358]
[1726807923687,0.4076,2540.7,2540.3,0.39358]
[1726807924686,0.4076,2540.7,2540.2,6.6714]
[1726807925285,3.6154,2540.7,2540.2,6.6714]
[1726807925978,4.00893,2540.7,2540.2,3.6014]
[1726807926177,3.6014,2540.3,2539.5,6.2778]
[1726807926482,0.8163,2540.2,2539.8,0.39366]
[1726807926685,1.20991,2540.2,2539.6,0.39369]
[1726807927075,3.8863,2540.2,2539.5,3.4867]
[1726807927386,6.2778,2540.0,2539.5,0.4167]
[1726807927680,6.2778,2540.0,2539.3,0.39373]
[1726807927681,3.46366,2539.9,2539.3,0.39373]
[1726807927883,3.46366,2539.9,2539.1,3.07]
[1726807927884,3.2078,2539.7,2539.1,3.07]
[1726807928075,0.4031,2539.6,2539.3,0.39374]
[1726807928277,0.4031,2539.6,2539.1,3.07]
[1726807928786,3.2078,2540.0,2539.5,3.07]
[1726807928989,3.6109,2540.0,2539.6,0.39369]
[1726807929284,3.2078,2540.0,2539.9,0.39365]
[1726807929679,3.2078,2540.0,2539.9,3.46365]
[1726807929881,0.4031,2540.4,2540.1,0.39362]
[1726807930084,0.4031,2540.4,2540.1,0.39361]
[1726807930289,0.3998,2540.6,2540.0,0.3917]
[1726807930290,0.3998,2540.6,2540.2,3.07]
[1726807930582,3.5922,2540.7,2540.5,0.39356]
[1726807930583,3.2078,2540.7,2540.5,0.39356]
[1726807930788,3.2078,2540.7,2540.5,0.39355]
[1726807931084,3.2078,2541.0,2540.5,3.936]
[1726807931385,3.2078,2541.0,2540.5,0.39355]
[1726807931781,3.2078,2541.0,2540.6,0.39354]
[1726807932683,3.2078,2541.0,2540.5,0.39355]
[1726807932986,3.2078,2541.0,2540.1,0.95368533]
[1726807933286,3.2078,2541.0,2540.2,0.3936]
[1726807933487,3.2078,2541.0,2540.3,0.39359]
[1726807933684,3.2078,2541.0,2540.1,0.56698533]
[1726807933887,3.2078,2541.0,2540.5,0.39355]
[1726807934085,3.2078,2541.0,2540.6,0.39354]
[1726807934288,3.2078,2541.0,2540.4,3.2078]
[1726807934685,3.2078,2541.0,2540.6,0.39353]
[1726807934880,3.2078,2541.0,2540.4,3.2078]
[1726807935389,3.2078,2541.0,2540.8,0.39351]
[1726807935987,4.1734,2541.6,2540.9,3.936]
[1726807935988,3.2078,2541.6,2540.9,3.936]
[1726807936288,3.2078,2541.6,2540.8,6.0]
[1726807936289,3.6143,2541.6,2540.7,3.2078]
[1726807936485,3.6143,2541.6,2540.8,0.3917]
[1726807936689,3.6143,2541.6,2541.2,0.39345]
[1726807937581,3.6143,2541.6,2540.8,4.62889929]
[1726807937782,3.6143,2541.6,2540.9,3.78]
[1726807937983,3.6143,2541.6,2541.4,0.39341]
[1726807938692,3.6143,2541.6,2541.4,0.39342]
[1726807938893,3.6143,2541.6,2541.3,0.39343]
[1726807939696,3.6143,2541.6,2541.4,0.39342]
[1726807940389,3.6143,2541.6,2541.3,0.39343]
[1726807941092,3.6143,2541.6,2540.9,3.78]
[1726807941093,3.6143,2541.6,2541.4,0.39342]
[1726807941292,3.6143,2541.6,2541.3,0.39343]
[1726807941980,3.6143,2541.6,2541.4,0.39342]
[1726807942196,3.6143,2541.6,2540.9,3.95360597]
[1726807942695,3.6143,2541.6,2541.3,0.39342]
[1726807942892,3.6143,2541.6,2541.4,0.39342]
[1726807943594,3.6143,2541.6,2541.3,0.39343]
[1726807943996,3.6143,2541.6,2540.9,3.95360597]
[1726807944401,3.6143,2541.6,2540.8,3.5995]
[1726807944402,3.6143,2541.6,2541.0,0.39347]
[1726807944591,0.408,2541.5,2541.0,0.39347]
[1726807945291,0.408,2541.5,2541.1,0.39346]
[1726807945800,0.408,2541.5,2540.8,3.78]
[1726807946193,0.408,2541.5,2541.2,0.39344]
[1726807946795,0.408,2541.5,2541.1,0.39346]
[1726807947404,0.408,2541.5,2541.2,0.39344]
[1726807947702,0.408,2541.5,2541.1,0.39346]
[1726807948498,0.408,2541.5,2540.8,3.78]
[1726807948704,0.408,2541.5,2541.1,0.39345]
[1726807949402,0.408,2541.5,2541.2,0.39344]
[1726807951104,0.408,2541.5,2540.8,3.95621013]
[1726807951397,7.3288,2542.2,2541.4,3.78]
[1726807951607,0.7984,2542.1,2541.5,0.3985]
[1726807951804,0.7984,2542.1,2541.9,0.39333]
[1726807952004,4.732,2542.1,2541.9,0.39333]
[1726807952604,4.732,2542.1,2541.9,0.39334]
[1726807953100,3.2078,2542.6,2542.0,3.07]
[1726807953303,0.3854,2542.6,2542.5,3.46325]
[1726807953502,0.413,2542.8,2542.6,0.39322]
[1726807953703,0.413,2542.8,2542.6,0.39323]
[1726807954407,3.5932,2542.9,2542.7,3.46321]
[1726807954711,3.5932,2542.9,2542.5,3.07]
[1726807955309,3.5932,2542.9,2542.6,0.39323]
[1726807955510,3.5932,2542.9,2542.5,3.46324]
[1726807955707,3.5932,2542.9,2542.4,0.39326]
[1726807956012,7.05639,2542.9,2542.4,0.39327]
[1726807956214,3.98639,2542.9,2542.4,0.39327]
[1726807956403,3.5932,2542.9,2542.4,0.39327]
[1726807956605,3.5932,2542.9,2541.9,3.6101]
[1726807956606,3.5932,2542.9,2542.5,3.46324]
[1726807956912,3.5932,2542.9,2542.5,3.46325]
[1726807957305,3.9864,2542.9,2542.5,3.07]
[1726807957608,3.9864,2542.9,2542.3,3.46327]
[1726807957909,3.9864,2542.9,2542.4,0.39325]
[1726807957910,3.5932,2542.9,2542.4,0.39325]
[1726807958205,3.5932,2542.9,2542.3,3.07]
[1726807958416,3.2078,2542.6,2542.3,3.07]
[1726807958711,0.3855,2542.5,2542.3,0.39328]
[1726807959099,0.3829,2542.4,2542.3,0.39328]
[1726807960712,3.07,2543.1,2542.2,3.07]
[1726807960713,3.2078,2543.0,2542.2,3.07]
[1726807960908,0.3769,2542.8,2542.5,3.07]
[1726807961309,0.3769,2542.8,2542.5,3.46324]
[1726807962003,0.3769,2542.8,2542.5,3.07]
[1726807962204,0.3769,2542.8,2542.6,0.39323]
[1726807962801,0.3769,2542.8,2542.7,0.39322]
[1726807963015,0.3769,2542.8,2542.5,3.07]
[1726807963016,0.3769,2542.8,2542.6,0.39323]
[1726807963219,0.3769,2542.8,2542.7,0.39322]
[1726807964014,0.3769,2542.8,2542.6,0.39322]
[1726807964210,3.6144,2543.0,2542.5,3.07]
[1726807964415,0.4097,2543.1,2543.0,0.39317]
[1726807965119,0.4097,2543.1,2543.0,4.32517]
[1726807965414,4.121,2543.4,2543.1,0.39314]
[1726807965614,0.4097,2543.5,2543.1,0.39314]
[1726807965819,0.4097,2543.5,2542.9,3.07]
[1726807966017,0.4097,2543.5,2543.0,0.39316]
[1726807966223,0.4097,2543.5,2543.1,0.39315]
[1726807967213,0.4097,2543.5,2542.9,3.07]
[1726807967418,3.2078,2543.4,2543.0,0.39317]
[1726807967614,3.2078,2543.4,2543.1,0.39316]
[1726807967814,0.4097,2543.5,2543.1,0.39316]
[1726807969520,0.4097,2543.5,2543.1,3.07]
[1726807969726,0.4097,2543.5,2543.1,3.46315]
[1726807969919,0.4097,2543.5,2543.2,0.39314]
[1726807970115,0.4097,2543.5,2543.1,3.46315]
[1726807972027,0.4097,2543.5,2543.1,3.07]
[1726807972321,0.4097,2543.5,2543.1,0.39315]
[1726807972824,0.4097,2543.5,2543.2,0.39314]
[1726807974125,0.4097,2543.5,2542.9,3.07]
[1726807974425,0.4097,2543.5,2543.1,0.39315]
[1726807974625,0.4097,2543.5,2542.7,3.24660964]
[1726807974626,3.2078,2543.4,2542.7,3.24660964]
[1726807974916,3.2078,2543.4,2542.6,4.0116]
[1726807974917,0.39315,2543.2,2542.6,3.8738]
[1726807975123,0.39315,2543.2,2542.8,0.39319]
[1726807975321,3.2078,2543.4,2542.6,3.8738]
[1726807975322,3.5883,2543.1,2542.6,0.8038]
[1726807975524,0.4068,2543.0,2542.8,0.3932]
[1726807975823,0.4068,2543.0,2542.7,0.39321]
[1726807976021,0.4068,2543.0,2542.8,0.3932]
[1726807976422,0.4068,2543.0,2542.7,0.39321]
[1726807976819,0.79999,2543.0,2542.6,0.39323]
[1726807977312,0.79999,2543.0,2542.5,3.07]
[1726807977313,0.4068,2543.0,2542.5,3.07]
[1726807977719,0.4068,2543.0,2542.8,0.3932]
[1726807978018,0.4068,2543.0,2542.8,0.39319]
[1726807978522,0.3805,2543.1,2542.7,3.07]
[1726807978725,0.3848,2543.3,2542.9,3.07]
[1726807979031,0.3848,2543.3,2543.0,0.39316]
[1726807979321,0.3848,2543.3,2543.1,0.39316]
[1726807980435,0.3848,2543.3,2543.2,0.39314]
[1726807980829,0.3848,2543.3,2543.1,3.46315]
[1726807981529,0.3848,2543.3,2543.2,0.39314]
[1726807981739,0.3848,2543.3,2543.1,3.07]
[1726807981740,0.3793,2543.5,2543.3,0.39312]
[1726807981929,0.3793,2543.5,2543.3,3.46312]
[1726807982335,0.3793,2543.5,2543.3,3.07]
[1726807982625,0.3793,2543.5,2543.0,1.1707]
[1726807982626,0.3793,2543.5,2543.1,3.46315]
[1726807983018,0.3793,2543.5,2543.1,3.07]
[1726807983227,0.7724,2543.5,2543.0,3.84267]
[1726807983426,3.60091,2543.4,2543.0,3.07]
[1726807983827,3.2078,2543.4,2542.9,3.2078]
[1726807984028,6.67093,2543.4,2542.9,3.2078]
[1726807984231,0.39313,2543.3,2542.9,3.2078]
[1726807984423,0.4165,2543.2,2542.9,3.60098]
[1726807984629,0.4165,2543.2,2543.0,0.39317]
[1726807984828,0.4165,2543.2,2543.0,3.46317]
[1726807985031,0.4165,2543.2,2543.0,3.07]
[1726807986139,0.4039,2543.1,2543.0,3.07]
[1726807987329,0.4039,2543.1,2543.0,3.46317]
[1726807987530,3.2078,2543.4,2543.1,0.39315]
[1726807987944,3.2078,2543.4,2543.2,3.07]
[1726807988137,3.2078,2543.3,2543.2,3.07]
[1726807988644,3.2078,2543.3,2543.1,0.39315]
[1726807989439,3.2078,2543.3,2543.0,3.46317]
[1726807989737,3.2078,2543.3,2543.0,3.07]
[1726807990333,3.2078,2543.3,2542.8,3.07]
[1726807990535,3.2078,2543.3,2542.9,0.39317]
[1726807990741,3.2078,2543.3,2542.8,3.07]
[1726807990742,3.2078,2543.3,2543.0,0.39317]
[1726807991641,3.60093,2543.3,2543.0,0.39317]
[1726807991847,0.39315,2543.2,2542.8,3.07]
[1726807992032,0.80375,2543.2,2542.8,3.46319]
[1726807992344,0.80375,2543.2,2542.6,0.7982]
[1726807992345,3.60098,2543.0,2542.7,0.39321]
[1726807992543,0.3928,2542.9,2542.7,0.39321]
[1726807994139,0.3928,2542.9,2542.8,0.3932]
[1726807994342,0.3928,2542.9,2542.6,3.07]
[1726807994343,0.3928,2542.9,2542.7,0.39321]
[1726807994943,0.3928,2542.9,2542.6,3.46322]
[1726807995548,0.3928,2542.9,2542.7,0.39322]
[1726807996047,0.3928,2542.9,2542.6,3.07]
[1726807996354,0.78599,2542.9,2542.4,6.6572]
[1726807996553,0.78599,2542.9,2542.6,0.39323]
[1726807997252,0.3928,2542.9,2542.6,0.39323]
[1726807997446,0.3928,2542.9,2542.4,6.6572]
[1726807997640,0.3928,2542.9,2542.0,3.07]
[1726807997641,3.2078,2542.7,2542.0,3.07]
[1726807997847,0.4034,2542.6,2542.3,0.39327]
[1726807998046,3.2078,2542.4,2542.1,0.3933]
[1726807998245,3.2078,2542.4,2542.2,0.3933]
[1726807998246,0.3776,2542.3,2542.2,0.3933]
[1726807998652,4.3112,2542.3,2542.1,0.39331]
[1726807998852,0.3793,2542.2,2542.1,0.39331]
[1726807999053,0.3793,2542.2,2541.7,3.07]
[1726807999054,4.3129,2542.2,2541.7,3.07]
[1726807999246,3.2078,2542.1,2541.8,0.39336]
[1726807999651,3.2078,2542.1,2541.9,0.39334]
[1726807999848,3.2078,2542.1,2542.0,0.39333]
[1726808000951,3.2078,2542.1,2541.9,3.46333]
[1726808001157,3.2078,2542.1,2541.9,3.46334]
[1726808001353,3.2078,2542.1,2541.9,3.07]
[1726808001847,3.2078,2542.1,2542.0,0.39333]
[1726808002056,3.5965,2542.5,2542.2,0.39329]
[1726808002250,3.5965,2542.5,2542.2,3.07]
[1726808002447,3.5965,2542.5,2542.2,3.46328]
[1726808003149,3.5965,2542.5,2542.4,3.07]
[1726808003656,3.2078,2542.8,2542.4,3.07]
[1726808003954,4.121,2542.9,2542.4,3.07]
[1726808003955,3.2078,2542.7,2542.5,0.39324]
[1726808004158,4.5047,2542.9,2542.5,0.39324]
[1726808004360,0.3837,2542.9,2542.5,0.39324]
[1726808006055,3.2078,2542.8,2542.4,3.07]
[1726808006251,3.2078,2542.8,2542.5,0.39324]
[1726808006559,3.2078,2542.8,2542.4,3.07]
[1726808006758,3.2078,2542.8,2542.5,0.39324]
[1726808006959,0.3837,2542.9,2542.5,0.39324]
[1726808007257,3.2078,2542.8,2542.5,0.39324]
[1726808007459,0.3837,2542.9,2542.5,0.39324]
[1726808007859,3.601,2542.8,2542.4,0.39326]
[1726808008948,3.2078,2542.8,2542.2,3.4755]
[1726808009163,0.3837,2542.9,2542.6,0.39323]
[1726808009659,0.3837,2542.9,2542.7,0.39321]
[1726808010062,0.3837,2542.9,2542.6,0.39322]
[1726808011753,3.2078,2542.8,2542.6,0.39322]
[1726808012254,3.2078,2542.8,2542.2,0.4055]
[1726808012561,6.2778,2542.8,2542.3,0.39328]
[1726808012867,0.39324,2542.6,2542.3,0.39328]
[1726808013058,6.2778,2542.8,2542.1,0.3933]
[1726808013059,7.91466,2542.5,2542.1,0.3933]
[1726808013252,0.4086,2542.4,2542.1,0.3933]
[1726808013659,0.80187,2542.4,2542.0,0.39332]
[1726808013853,0.4086,2542.4,2542.1,0.39331]
[1726808014064,0.4086,2542.4,2542.0,0.39332]
[1726808014065,0.80187,2542.4,2542.0,0.39332]
[1726808014362,0.80187,2542.4,2541.8,3.4872]
[1726808014363,3.2078,2542.2,2542.1,0.39331]
[1726808014666,0.4086,2542.4,2542.1,0.3933]
[1726808014964,0.39328,2542.3,2541.8,3.4872]
[1726808015157,0.80187,2542.4,2541.9,0.39333]
[1726808015661,3.2078,2542.2,2541.8,0.4172]
[1726808015863,3.6011,2542.2,2541.8,0.4172]
[1726808016257,3.6011,2542.2,2541.7,0.39336]
[1726808016750,0.3872,2542.1,2541.7,0.39336]
[1726808017267,0.3856,2542.0,2541.7,0.39336]
[1726808017761,3.6011,2542.2,2541.8,3.07]
[1726808017762,3.2078,2542.2,2541.8,3.07]
[1726808017963,3.2078,2542.2,2541.9,0.397]
[1726808018663,3.2078,2542.2,2541.9,0.79034]
[1726808018960,3.2078,2542.2,2541.9,0.397]
[1726808019166,3.2078,2542.2,2541.9,0.79033]
[1726808019367,0.3856,2542.3,2542.0,0.39332]
[1726808019556,0.3856,2542.3,2541.9,1.18224]
[1726808019957,0.3856,2542.3,2542.0,0.39333]
[1726808020164,0.3856,2542.3,2541.9,1.18223]
[1726808021072,0.3856,2542.3,2542.0,0.39332]
[1726808023563,3.2078,2542.2,2541.9,0.39334]
[1726808023965,3.2078,2542.2,2542.0,0.39332]
[1726808024159,3.2078,2542.2,2541.9,0.39334]
[1726808025368,3.2078,2542.2,2542.0,0.39332]
[1726808025570,3.2078,2542.2,2541.9,0.39333]
[1726808026268,3.6011,2542.2,2541.9,0.39333]
[1726808026769,3.2078,2542.2,2541.9,0.39333]
[1726808027473,0.77889,2542.3,2541.6,3.8652]
[1726808027778,0.77888,2542.3,2541.9,0.39333]
[1726808028164,0.3856,2542.3,2542.1,0.3933]
[1726808028868,3.5878,2542.5,2542.4,0.39327]
[1726808029071,4.3136,2542.5,2542.2,0.39329]
[1726808029270,0.38,2542.5,2542.2,0.39329]
[1726808029966,3.5878,2542.5,2542.1,0.7754]
[1726808030469,4.0054,2542.5,2542.1,0.7754]
[1726808030671,4.39866,2542.5,2541.8,3.07]
[1726808030873,4.39866,2542.5,2542.1,0.39331]
[1726808031061,4.39866,2542.5,2541.9,0.3858]
[1726808031062,4.0054,2542.5,2541.9,0.3858]
[1726808031367,0.39332,2542.1,2541.7,0.39336]
[1726808031566,0.7709,2542.0,2541.7,0.39336]
[1726808031965,1.16423,2542.0,2541.7,0.39336]
[1726808032272,0.7709,2542.0,2541.7,0.39336]
[1726808032568,0.7709,2542.0,2541.6,0.3858]
[1726808032771,1.16424,2542.0,2541.6,0.77918]
[1726808032967,1.16424,2542.0,2541.6,0.3858]
[1726808033182,0.39334,2541.9,2541.6,0.77918]
[1726808033368,4.01604,2541.9,2541.5,0.3934]
[1726808033670,4.01604,2541.9,2541.6,0.39338]
[1726808035059,3.6227,2541.9,2541.6,0.39338]
[1726808035264,3.6227,2541.9,2541.2,3.8553]
[1726808035461,3.6227,2541.9,2541.7,0.39337]
[1726808035973,3.9344,2541.8,2541.7,0.39337]
[1726808036675,3.9344,2541.8,2541.6,0.39338]
[1726808036877,0.4149,2541.9,2541.2,3.8553]
[1726808037078,4.01605,2541.9,2541.6,0.39338]
[1726808037263,0.39338,2541.7,2541.2,3.4534]
[1726808037465,0.39338,2541.7,2541.4,0.39342]
[1726808037765,0.3798,2541.6,2541.4,0.39342]
[1726808037970,0.3798,2541.6,2541.3,0.39343]
[1726808038171,0.3798,2541.6,2541.4,0.39342]
[1726808038371,0.4082,2541.5,2541.4,0.39342]
[1726808038976,0.4082,2541.5,2541.3,0.39343]
[1726808039669,0.4082,2541.5,2541.4,0.39342]
[1726808040574,0.4082,2541.5,2541.3,0.39343]
[1726808041162,0.4082,2541.5,2541.2,0.3834]
[1726808041676,3.616,2541.5,2541.2,0.77685]
[1726808041875,0.4082,2541.5,2541.2,0.77685]
[1726808042376,0.4082,2541.5,2541.3,0.39344]
[1726808042575,0.4082,2541.5,2541.2,0.3834]
[1726808042787,0.4082,2541.5,2541.3,0.39343]
[1726808043180,0.4082,2541.5,2541.3,0.39344]
[1726808044475,3.616,2541.5,2541.3,0.39344]
[1726808045269,0.4082,2541.5,2541.2,0.3834]
[1726808045476,0.4082,2541.5,2541.3,0.39343]
[1726808047678,0.4082,2541.5,2541.3,0.39344]
[1726808048774,0.4082,2541.5,2541.2,0.3834]
[1726808048775,0.4082,2541.5,2541.4,0.39342]
[1726808048983,0.4082,2541.5,2541.3,0.39343]
[1726808049278,0.80161,2541.5,2541.2,0.77685]
[1726808050181,0.39342,2541.4,2541.2,0.3834]
[1726808050377,0.39342,2541.4,2541.1,0.39346]
[1726808050583,0.39343,2541.4,2541.1,0.39346]
[1726808050881,4.00941,2541.5,2541.1,0.39346]
[1726808051178,3.616,2541.5,2541.0,0.4037]
[1726808051380,3.616,2541.5,2541.2,0.39344]
[1726808052782,4.0094,2541.5,2541.1,0.39346]
[1726808052982,0.39342,2541.4,2541.0,0.79717]
[1726808053485,3.07,2541.1,2540.4,0.99294255]
[1726808053681,0.3919,2541.0,2540.7,0.3779]
[1726808053985,1.19449,2541.0,2540.7,0.3779]
[1726808054177,1.19449,2541.0,2540.5,0.412]
[1726808054178,0.3935,2540.9,2540.5,0.412]
[1726808054484,1.19449,2541.0,2540.5,0.412]
[1726808054787,0.39351,2540.9,2540.5,0.80555]
[1726808055488,0.39352,2540.8,2540.5,0.412]
[1726808055787,3.60132,2540.8,2540.5,0.412]
[1726808056188,3.07,2540.6,2540.0,3.2078]
[1726808056389,0.772,2540.5,2540.1,0.3985]
[1726808056586,0.772,2540.5,2540.1,0.79212]
[1726808056780,0.772,2540.5,2540.1,0.79211]
[1726808057082,1.16556,2540.5,2540.1,0.79211]
[1726808057288,0.772,2540.5,2540.2,0.3936]
[1726808057585,0.772,2540.5,2540.1,0.79212]
[1726808058687,0.772,2540.5,2540.1,0.3985]
[1726808059184,0.772,2540.5,2540.1,0.79212]
[1726808060488,0.772,2540.5,2540.1,0.3985]
[1726808060686,6.2778,2540.2,2539.7,0.17266985]
[1726808060888,6.2778,2540.2,2539.6,1.197]
[1726808060889,0.80293,2540.1,2539.6,1.197]
[1726808061083,0.4093,2540.1,2539.6,1.197]
[1726808061385,0.4093,2540.1,2539.6,0.8033]
[1726808061691,0.377,2540.0,2539.7,0.39368]
[1726808063088,0.377,2540.0,2539.7,0.39367]
[1726808063388,0.377,2540.0,2539.6,0.8033]
[1726808063389,0.377,2540.0,2539.6,1.19699]
[1726808063789,3.447,2540.0,2539.6,0.8033]
[1726808064797,0.4093,2540.1,2539.6,0.8033]
[1726808065090,3.2078,2540.2,2539.8,0.39366]
[1726808065889,3.2078,2540.2,2539.8,0.39365]
[1726808066691,6.2778,2540.2,2539.7,0.39367]
[1726808067191,6.67141,2540.2,2539.7,0.39367]
[1726808067690,6.67141,2540.2,2539.7,0.39368]
[1726808069494,6.2778,2540.2,2539.7,0.39368]
[1726808069687,6.67141,2540.2,2539.7,0.39367]
[1726808069892,6.67142,2540.2,2539.7,0.39368]
[1726808070087,0.39363,2540.1,2539.6,0.8033]
[1726808070396,6.67141,2540.2,2539.7,0.39368]
[1726808071396,6.67141,2540.2,2539.6,0.39369]
[1726808071397,3.07,2540.0,2539.6,0.39369]
[1726808071591,0.3911,2539.9,2539.4,0.80012]
[1726808071894,1.59406,2539.9,2539.4,0.80012]
[1726808072499,1.2004,2539.9,2539.4,0.80012]
[1726808072895,1.2004,2539.9,2539.5,0.39371]
[1726808073100,1.2004,2539.9,2539.5,0.3937]
[1726808074290,1.2004,2539.9,2539.4,0.4064]
[1726808074493,1.2004,2539.9,2539.5,0.39371]
[1726808074702,1.2004,2539.9,2539.4,0.80012]
[1726808074896,1.2004,2539.9,2539.5,0.39371]
[1726808075700,1.2004,2539.9,2539.4,0.80012]
[1726808076405,1.2004,2539.9,2539.5,0.39371]
[1726808078301,1.2004,2539.9,2539.4,0.80012]
[1726808078302,1.59406,2539.9,2539.4,0.80012]
[1726808078492,1.59406,2539.9,2539.2,1.19115]
[1726808078493,3.60148,2539.7,2539.2,1.19115]
[1726808078704,3.07,2539.8,2539.2,1.1949]
[1726808078903,3.07,2539.6,2539.2,0.3975]
[1726808079202,3.07,2539.6,2538.9,3.07]
[1726808079203,3.07,2539.4,2538.9,0.4075]
[1726808079403,0.391,2539.3,2538.9,1.2082]
[1726808080102,0.391,2539.3,2538.9,0.8144]
[1726808080315,0.391,2539.3,2538.9,1.20821]
[1726808080499,0.391,2539.3,2539.1,0.39377]
[1726808080899,0.3899,2539.5,2539.1,0.39377]
[1726808081108,0.7809,2539.5,2539.0,0.79078]
[1726808081299,3.07,2539.4,2539.0,0.397]
[1726808081708,3.07,2539.4,2538.9,0.4069]
[1726808081897,3.07,2539.4,2538.8,0.39382]
[1726808082094,3.07,2539.4,2538.9,0.4069]
[1726808082509,3.07,2539.4,2538.9,0.8007]
[1726808083710,3.07,2539.4,2538.9,0.4069]
[1726808084101,3.60155,2539.3,2538.7,0.7812]
[1726808084302,3.60155,2539.3,2538.7,1.17504]
[1726808084502,3.4553,2539.2,2538.7,1.17504]
[1726808085000,3.2078,2539.0,2538.6,0.4023]
[1726808085209,0.4038,2538.9,2538.5,0.39387]
[1726808085403,0.4038,2538.9,2538.3,1.17539]
[1726808085603,0.4038,2538.9,2538.4,0.39388]
[1726808085812,0.4038,2538.9,2538.3,0.7815]
[1726808086007,0.4038,2538.9,2538.3,1.17539]
[1726808087007,3.07,2538.8,2538.2,3.64218808]
[1726808087314,3.2078,2538.7,2538.2,3.63297808]
[1726808087713,3.2078,2538.7,2538.5,0.39386]
[1726808088016,3.2078,2538.7,2538.3,0.39389]
[1726808088017,0.392,2538.6,2538.3,0.39389]
[1726808088311,3.462,2538.6,2538.1,0.4086]
[1726808088514,3.462,2538.6,2538.1,0.8175]
[1726808088725,3.85586,2538.6,2538.1,0.4089]
[1726808088923,0.4128,2538.5,2538.0,0.39394]
[1726808089213,0.4171,2538.4,2538.0,0.39394]
[1726808089712,0.4171,2538.4,2538.1,0.39393]
[1726808090816,0.392,2538.6,2538.2,3.07]
[1726808091015,0.392,2538.6,2538.3,0.39389]
[1726808091211,0.392,2538.6,2538.2,3.07]
[1726808091614,3.2078,2538.7,2538.6,0.39385]
[1726808091821,4.121,2538.9,2538.7,0.39383]
[1726808092012,4.121,2538.9,2538.6,0.39384]
[1726808092820,0.3825,2538.8,2538.6,0.39384]
[1726808093115,0.3825,2538.8,2538.7,0.39384]
[1726808093318,4.121,2538.9,2538.4,7.18229516]
[1726808093506,4.121,2538.9,2538.4,3.24309516]
[1726808094121,4.121,2538.9,2538.6,0.39384]
[1726808096510,3.5945,2539.0,2538.5,0.39386]
[1726808096709,3.5945,2539.0,2538.3,1.39192904]
[1726808096907,3.5945,2539.0,2538.6,0.39385]
[1726808097516,3.07,2538.9,2538.3,1.2175]
[1726808097722,3.07,2538.8,2538.4,0.39387]
[1726808097918,0.4014,2538.7,2538.3,1.21759]
[1726808098113,3.9967,2538.7,2538.3,0.80969]
[1726808098414,0.7889,2538.7,2538.5,0.39385]
[1726808099016,0.7889,2538.7,2538.6,0.39385]
[1726808099618,0.7889,2538.7,2538.3,0.4158]
[1726808099822,0.7889,2538.7,2538.4,0.39388]
[1726808100013,6.67167,2538.5,2538.0,0.39394]
[1726808100319,3.07,2538.2,2538.0,0.39394]
[1726808100623,0.7841,2538.1,2538.0,0.39394]
[1726808101017,3.07,2538.8,2538.0,9.94]
[1726808101218,3.4531,2538.7,2538.1,0.39]
[1726808101415,3.2078,2538.6,2538.2,0.3939]
[1726808101622,3.4531,2538.7,2537.9,3.2078]
[1726808101623,6.2778,2538.3,2537.9,3.2078]
[1726808101927,1.1966,2538.2,2538.0,0.39394]
[1726808102311,1.1966,2538.2,2537.6,4.0142]
[1726808102508,3.07,2538.1,2537.6,4.0142]
[1726808102713,3.07,2538.1,2537.7,0.39399]
[1726808103023,4.2666,2538.2,2537.9,0.39396]
[1726808103711,0.7841,2538.2,2537.9,6.2778]